[Event "XVI Memorial Ezequiel Martin 2024"]
[Site "Mollet"]
[Date "2024.06.09"]
[Round "5.6"]
[White "Fernandez Aguilar, Francisco"]
[Black "Ayats Llobera, Gerard"]
[Result "0-1"]
[ECO "E05"]
[WhiteElo "2054"]
[BlackElo "2466"]
[Annotator "RC"]
[PlyCount "128"]
[EventDate "2024.06.01"]
[EventType "swiss"]
[EventCountry "ESP"]
[SourceTitle "playchess.com"]
[Source "ChessBase"]
[SourceQuality "1"]
[TimeControl "900+5"]

1. Nf3 {[%emt 0:00:03]} Nf6 {[%emt 0:00:01]} 2. c4 {[%emt 0:00:00]} e6 {[%emt 0:00:05]} 3. g3 {[%emt 0:00:05]} d5 {[%emt 0:00:05]} 4. d4 {[%emt 0:00:05]} Be7 {[%emt 0:00:05]} 5. Bg2 {[%emt 0:00:05]} dxc4 {[%emt 0:00:00]} 6. O-O {[%emt 0:00:00]} O-O {[%emt 0:00:05]} 7. Ne5 {[%emt 0:00:08]} Nbd7 {[%emt 0:00:08]} 8. Nxc4 {[%emt 0:00:09]} Nb6 {[%emt 0:00:01]} 9. Ne5 {[%emt 0:00:36]} c6 {[%emt 0:00:03]} 10. Nc3 {[%emt 0:00:47]} Nfd7 {[%emt 0:00:05]} 11. Nf3 {[%emt 0:00:05]} Bd6 {[%emt 0:00:05]} 12. Ne4 {[%emt 0:00:05]} Be7 {[%emt 0:00:06]} 13. Bf4 {[%emt 0:01:01]} Nf6 {[%emt 0:00:05]} 14. Nc5 Nbd5 {[%emt 0:00:05]} 15. Bd2 {[%emt 0:00:10]} b6 {[%emt 0:00:05]} 16. Nd3 {[%emt 0:00:05]} Bb7 {[%emt 0:00:05]} 17. Nfe5 {[%emt 0:00:05]} Nd7 {[%emt 0:00:05]} 18. Nxd7 {[%emt 0:00:05]} Qxd7 {[%emt 0:00:13]} 19. Ne5 {[%emt 0:06:25]} Qd8 {[%emt 0:00:17]} 20. Qa4 {[%emt 0:00:34]} c5 {[%emt 0:00:49]} 21. dxc5 {[%emt 0:00:23]} Bxc5 {[%emt 0:00:03]} 22. Nd7 {[%emt 0:00:22]} Re8 {[%emt 0:00:01]} 23. Nxc5 {[%emt 0:00:05]} bxc5 {[%emt 0:00:01]} 24. Rfd1 {[%emt 0:00:11]} Qb6 {[%emt 0:00:01]} 25. a3 {[%emt 0:00:24]} Bc6 {[%emt 0:00:07]} 26. Qc2 {[%emt 0:01:30]} Rac8 {[%emt 0:00:13]} 27. Rac1 {[%emt 0:00:07]} Bb7 {[%emt 0:00:07]} 28. e4 {[%emt 0:00:27]} Nf6 {[%emt 0:00:02]} 29. Be3 {[%emt 0:00:07]} Qb5 {[%emt 0:00:13]} 30. f3 {[%emt 0:00:15]} Nd7 {[%emt 0:01:10]} 31. Bf4 {[%emt 0:01:26]} c4 {[%emt 0:00:12]} 32. Kh1 {[%emt 0:00:27]} Ba6 {[%emt 0:00:15]} 33. Bf1 {[%emt 0:00:37]} Qb7 {[%emt 0:00:04]} 34. Bd6 {[%emt 0:00:19]} h6 {[%emt 0:00:32]} 35. Qc3 {[%emt 0:00:21]} Rc6 {[%emt 0:00:15]} 36. Bb4 {[%emt 0:00:16]} Bb5 {[%emt 0:00:05]} 37. Bg2 {[%emt 0:00:05]} e5 {[%emt 0:00:05]} 38. Qd2 {[%emt 0:00:05]} Nb8 {[%emt 0:00:50]} 39. Bh3 {[%emt 0:00:09]} Rf6 {[%emt 0:00:07]} 40. Qe3 {[%emt 0:00:07]} Ba4 {[%emt 0:00:40]} 41. Rd2 {[%emt 0:00:08]} Bb3 {[%emt 0:00:17]} 42. Bc3 {[%emt 0:00:01]} Qc7 {[%emt 0:00:23]} 43. Rf1 {[%emt 0:00:02]} Ba4 {[%emt 0:10:24]} 44. Rff2 {[%emt 0:00:02]} a6 {[%emt 0:00:00]} 45. Rd5 {[%emt 0:00:01]} Rd6 {[%emt 0:00:00]} 46. Rfd2 {[%emt 0:00:03]} Rxd5 {[%emt 0:00:00]} 47. Rxd5 {[%emt 0:00:01]} Bc6 {[%emt 0:00:00]} 48. Rd1 {[%emt 0:00:05]} Bd7 {[%emt 0:00:00]} 49. Bxd7 {[%emt 0:00:15]} Nxd7 {[%emt 0:00:00]} 50. Qd2 {[%emt 0:00:04]} Nf8 {[%emt 0:00:00]} 51. Qd6 {[%emt 0:00:04]} Qb7 {[%emt 0:00:00]} 52. Bxe5 {[%emt 0:00:10]} Qb3 {[%emt 0:00:00]} 53. Bc3 {[%emt 0:00:03]} Ne6 {[%emt 0:00:00]} 54. Qd2 {[%emt 0:00:07]} Rd8 {[%emt 0:00:00]} 55. Qxd8+ {[%emt 0:00:04]} Nxd8 {[%emt 0:00:00]} 56. Rxd8+ {[%emt 0:00:05]} Kh7 {[%emt 0:01:05]} 57. Rd2 {[%emt 0:00:00]} Qa2 {[%emt 0:00:00]} 58. Rd1 {[%emt 0:00:10]} Qb3 {[%emt 0:00:00]} 59. Rd2 {[%emt 0:00:00]} Qb6 {[%emt 0:00:00]} 60. Bd4 {[%emt 0:00:05]} c3 {[%emt 0:00:00]} 61. Bxc3 {[%emt 0:00:13]} Qe3 {[%emt 0:00:00]} 62. Kg2 {[%emt 0:00:05]} g5 {[%emt 0:00:00]} 63. g4 {[%emt 0:00:05]} h5 {[%emt 0:00:00]} 64. h3 {[%emt 0:00:16]} h4 {[%emt 0:00:00]} 0-1

[Event "XVI Memorial Ezequiel Martin 2024"]
[Site "Mollet"]
[Date "2024.06.09"]
[Round "6.1"]
[White "Lazaro Pujol, Abel"]
[Black "Diaz Camallonga, Carles"]
[Result "1-0"]
[ECO "C17"]
[WhiteElo "2356"]
[BlackElo "2478"]
[Annotator "RC"]
[PlyCount "197"]
[EventDate "2024.06.01"]
[EventType "swiss"]
[EventCountry "ESP"]
[SourceTitle "playchess.com"]
[Source "ChessBase"]
[SourceQuality "1"]
[TimeControl "900+5"]

1. e4 {[%emt 0:00:04]} e6 {[%emt 0:00:06]} 2. d4 {[%emt 0:00:02]} d5 {[%emt 0:00:02]} 3. Nc3 {[%emt 0:00:02]} Bb4 {[%emt 0:00:01]} 4. e5 {[%emt 0:00:05]} c5 {[%emt 0:00:02]} 5. Bd2 {[%emt 0:00:23]} Ne7 {[%emt 0:00:01]} 6. Nf3 {[%emt 0:00:03]} Nbc6 {[%emt 0:03:03]} 7. a3 {[%emt 0:00:02]} Bxc3 {[%emt 0:00:03]} 8. Bxc3 {[%emt 0:00:02]} cxd4 {[%emt 0:00:11]} 9. Bxd4 {[%emt 0:00:02]} Nf5 {[%emt 0:12:21]} 10. Bc3 {[%emt 0:15:10]} d4 {[%emt 0:00:00]} 11. Bd2 {[%emt 0:00:00]} Qd5 {[%emt 0:00:10]} 12. c4 {[%emt 0:00:10]} Qe4+ {[%emt 0:00:00]} 13. Qe2 {[%emt 0:00:00]} Qxe2+ {[%emt 0:00:00]} 14. Bxe2 {[%emt 0:00:00]} f6 {[%emt 0:00:15]} 15. exf6 {[%emt 0:00:00]} gxf6 {[%emt 0:00:00]} 16. b4 {[%emt 0:00:20]} e5 {[%emt 0:00:10]} 17. Bd3 {[%emt 0:00:05]} Nfe7 {[%emt 0:00:00]} 18. b5 {[%emt 0:00:00]} Nd8 {[%emt 0:00:00]} 19. Bb4 {[%emt 0:00:00]} b6 {[%emt 0:00:00]} 20. O-O-O {[%emt 0:00:00]} Bb7 {[%emt 0:00:00]} 21. Nxd4 {[%emt 0:00:00]} Rc8 {[%emt 0:00:00]} 22. Rhe1 {[%emt 0:00:25]} Nf7 {[%emt 0:00:30]} 23. Nf5 {[%emt 0:00:00]} Nxf5 {[%emt 0:00:00]} 24. Bxf5 {[%emt 0:00:00]} Rxc4+ {[%emt 0:00:00]} 25. Kb2 {[%emt 0:00:00]} Bc8 {[%emt 0:00:00]} 26. Be4 {[%emt 0:00:00]} Nd8 {[%emt 0:00:20]} 27. Bd5 {[%emt 0:00:00]} Rf4 {[%emt 0:00:00]} 28. f3 {[%emt 0:00:00]} Bb7 {[%emt 0:00:00]} 29. g3 {[%emt 0:00:00]} Rf5 {[%emt 0:00:00]} 30. f4 {[%emt 0:00:00]} Bxd5 {[%emt 0:00:10]} 31. Rxd5 {[%emt 0:00:00]} Rg8 {[%emt 0:00:04]} 32. fxe5 {[%emt 0:00:00]} Rf2+ {[%emt 0:00:16]} 33. Kb1 {[%emt 0:00:04]} Ne6 {[%emt 0:00:00]} 34. exf6 {[%emt 0:00:17]} Rxf6 {[%emt 0:00:00]} 35. Rd6 {[%emt 0:00:13]} Kf7 {[%emt 0:00:01]} 36. Rd7+ {[%emt 0:00:04]} Kg6 {[%emt 0:00:03]} 37. Bc3 {[%emt 0:00:16]} Nc5 {[%emt 0:00:00]} 38. Rxa7 {[%emt 0:00:18]} Rd6 {[%emt 0:00:01]} 39. Rae7 {[%emt 0:00:04]} Rc8 {[%emt 0:00:06]} 40. Bb4 {[%emt 0:00:05]} Rf6 {[%emt 0:00:04]} 41. Bxc5 {[%emt 0:00:06]} Rxc5 {[%emt 0:00:01]} 42. a4 {[%emt 0:00:01]} Rc4 {[%emt 0:00:03]} 43. R1e6 {[%emt 0:00:03]} Rxa4 {[%emt 0:00:04]} 44. Rxf6+ {[%emt 0:00:01]} Kxf6 {[%emt 0:00:01]} 45. Rxh7 {[%emt 0:00:02]} Rb4+ {[%emt 0:00:01]} 46. Kc2 {[%emt 0:00:01]} Rxb5 {[%emt 0:00:01]} 47. Kd3 {[%emt 0:00:07]} Kg6 {[%emt 0:00:12]} 48. Rh8 {[%emt 0:00:07]} Kg7 {[%emt 0:00:03]} 49. Rh4 {[%emt 0:00:04]} Kg6 {[%emt 0:00:01]} 50. Ke3 {[%emt 0:00:02]} Rb2 {[%emt 0:00:04]} 51. Kf3 {[%emt 0:00:04]} Rb3+ {[%emt 0:00:17]} 52. Kg2 {[%emt 0:00:03]} b5 {[%emt 0:00:00]} 53. Rh8 {[%emt 0:00:33]} Kg7 {[%emt 0:00:42]} 54. Rb8 {[%emt 0:00:00]} Rb2+ {[%emt 0:00:00]} 55. Kh3 {[%emt 0:00:00]} Kg6 {[%emt 0:00:10]} 56. Rc8 {[%emt 0:00:15]} Kg5 {[%emt 0:00:00]} 57. Rc5+ {[%emt 0:00:00]} Kg6 {[%emt 0:00:00]} 58. g4 {[%emt 0:00:00]} b4 {[%emt 0:00:00]} 59. Kg3 {[%emt 0:00:00]} b3 {[%emt 0:00:00]} 60. h4 {[%emt 0:00:20]} Rb1 {[%emt 0:00:14]} 61. Rc6+ {[%emt 0:00:00]} Kg7 {[%emt 0:00:01]} 62. Rb6 {[%emt 0:00:10]} b2 {[%emt 0:00:10]} 63. Kg2 {[%emt 0:00:00]} Kh7 {[%emt 0:00:02]} 64. g5 {[%emt 0:00:00]} Kg7 {[%emt 0:00:18]} 65. Kh2 {[%emt 0:00:00]} Kh7 {[%emt 0:00:00]} 66. h5 {[%emt 0:00:00]} Rc1 {[%emt 0:00:02]} 67. Rxb2 {[%emt 0:00:00]} Rc5 {[%emt 0:00:01]} 68. Rg2 {[%emt 0:00:05]} Rc3 {[%emt 0:00:03]} 69. Rg3 {[%emt 0:00:02]} Rc4 {[%emt 0:00:02]} 70. Kh3 {[%emt 0:00:02]} Kg7 {[%emt 0:00:03]} 71. Rg4 {[%emt 0:00:03]} Rc1 {[%emt 0:00:01]} 72. Rf4 {[%emt 0:00:23]} Rh1+ {[%emt 0:00:03]} 73. Kg4 {[%emt 0:00:01]} Rg1+ {[%emt 0:00:02]} 74. Kf5 {[%emt 0:00:01]} Ra1 {[%emt 0:00:02]} 75. Re4 {[%emt 0:00:16]} Rf1+ {[%emt 0:00:02]} 76. Rf4 {[%emt 0:00:06]} Ra1 {[%emt 0:00:39]} 77. h6+ {[%emt 0:00:07]} Kh7 {[%emt 0:00:00]} 78. Kf6 {[%emt 0:00:06]} Ra6+ {[%emt 0:00:00]} 79. Kf7 {[%emt 0:00:05]} Ra7+ {[%emt 0:00:00]} 80. Kf6 {[%emt 0:00:02]} Ra6+ {[%emt 0:00:00]} 81. Kf5 {[%emt 0:00:03]} Ra1 {[%emt 0:00:00]} 82. Kg4 {[%emt 0:00:04]} Rg1+ {[%emt 0:00:00]} 83. Kh5 {[%emt 0:00:01]} Rh1+ {[%emt 0:00:00]} 84. Rh4 {[%emt 0:00:01]} Rg1 {[%emt 0:00:40]} 85. Rh2 {[%emt 0:00:04]} Rg3 {[%emt 0:00:00]} 86. Ra2 {[%emt 0:00:04]} Rh3+ {[%emt 0:00:00]} 87. Kg4 {[%emt 0:00:01]} Rh1 {[%emt 0:00:00]} 88. Ra7+ {[%emt 0:00:02]} Kg8 {[%emt 0:00:00]} 89. Kf5 {[%emt 0:00:04]} Rb1 {[%emt 0:00:00]} 90. Re7 {[%emt 0:00:05]} Rb5+ {[%emt 0:00:00]} 91. Kf6 {[%emt 0:00:02]} Rb6+ {[%emt 0:00:00]} 92. Re6 {[%emt 0:00:01]} Rb8 {[%emt 0:00:00]} 93. g6 {[%emt 0:00:16]} Kh8 {[%emt 0:00:04]} 94. Rd6 {[%emt 0:00:12]} Re8 {[%emt 0:00:11]} 95. Rd7 {[%emt 0:00:12]} Kg8 {[%emt 0:00:09]} 96. Re7 {[%emt 0:00:09]} Rf8+ {[%emt 0:00:01]} 97. Kg5 {[%emt 0:00:01]} Ra8 {[%emt 0:00:06]} 98. h7+ {[%emt 0:00:05]} Kh8 {[%emt 0:00:01]} 99. Kh6 {[%emt 0:00:19]} 1-0

[Event "XVI Memorial Ezequiel Martin 2024"]
[Site "Mollet"]
[Date "2024.06.09"]
[Round "6.2"]
[White "Garriga Cazorla, Pere"]
[Black "Cruz, Filemon"]
[Result "1-0"]
[ECO "A30"]
[WhiteElo "2471"]
[BlackElo "2247"]
[Annotator "TA"]
[PlyCount "67"]
[EventDate "2024.06.01"]
[EventType "swiss"]
[EventCountry "ESP"]
[SourceTitle "playchess.com"]
[Source "ChessBase"]
[SourceQuality "1"]
[TimeControl "900+5"]

{[%evp 21,67,45,52,48,44,48,55,50,114,122,114,103,106,109,92,111,200,160,308,300,509,518,545,505,546,531,636,657,713,455,426,487,1261,1281,29985,3356,29987,29988,29988,29989,29989,29990,29990,29990,29989,29984,29984,29985]} 1. Nf3 {[%emt 0:00:03]} c5 {[%emt 0:01:22]} 2. c4 {[%emt 0:00:02]} Nf6 {[%emt 0:00:09]} 3. g3 {[%emt 0:00:02]} b6 {[%emt 0:00:03]} 4. Bg2 {[%emt 0:00:01]} Bb7 {[%emt 0:00:01]} 5. O-O {[%emt 0:00:02]} e6 {[%emt 0:00:01]} 6. Nc3 {[%emt 0:00:00]} Be7 {[%emt 0:00:02]} 7. Re1 {[%emt 0:00:02]} O-O {[%emt 0:00:10]} 8. e4 {[%emt 0:00:01]} d6 {[%emt 0:00:01]} 9. d4 {[%emt 0:00:01]} cxd4 {[%emt 0:00:02]} 10. Nxd4 {[%emt 0:00:01]} Qc8 {[%emt 0:00:32]} 11. Be3 {[%emt 0:00:02]} a6 {[%emt 0:00:05]} 12. Rc1 {[%emt 0:00:02]} Nbd7 {[%emt 0:00:02]} 13. f4 {[%emt 0:00:01][%cal Bf2f4,Bf4f5,Bf5f6,Bf6g7][%mdl 32]} Re8 {[%emt 0:00:07]} 14. g4 {[%emt 0:00:09][%cal Bg3g4,Bg4g5][%mdl 32] aiming for g5. White is slightly better.} Nf8 {[%emt 0:00:05] Black is on the road to losing.} (14... h6 $14) 15. g5 $16 {[%emt 0:00:17]} N6d7 {[%emt 0:00:02]} 16. f5 {[%emt 0:00:15] White is more active.} Ne5 {[%emt 0:00:11]} 17. b3 {[%emt 0:00:02]} Qd8 {[%emt 0:01:05]} 18. h4 $36 {[%emt 0:00:15][%mdl 2048] White is on the roll.} Nc6 {[%emt 0:01:54]} (18... h6 $16) 19. Rf1 {[%emt 0:04:10]} Qd7 {[%emt 0:00:53]} (19... Nxd4 $16 {was worth a try.} 20. Bxd4 (20. Qxd4 Nd7 $16) 20... Nd7 21. fxe6 fxe6) 20. Nxc6 {[%emt 0:01:00]} Qxc6 {[%emt 0:00:08]} (20... Bxc6 {keeps fighting.} 21. f6 (21. Bxb6 exf5 22. Rxf5 f6 $16) 21... Bd8 22. fxg7 Kxg7) 21. f6 $18 {[%emt 0:00:01]} Bd8 {[%emt 0:00:01]} 22. fxg7 {[%emt 0:00:04]} Ng6 {[%emt 0:00:01]} 23. Qh5 {[%emt 0:02:14][%cal Of1f7] Rxf7! would now be deadly.} Qd7 {[%emt 0:00:25]} 24. Qh6 {[%emt 0:01:01]} Bc7 {[%emt 0:01:01]} 25. h5 {[%emt 0:02:04][%cal Of1f6] And now Rf6! would win.} Ne5 {[%emt 0:00:04]} 26. Bh3 {[%emt 0:00:00] Prevents Ng4.} Qe7 {[%emt 0:00:41]} (26... f5 $142 27. exf5 (27. gxf6 Nf7 $18) 27... exf5) 27. Rc2 {[%emt 0:01:03]} b5 {[%emt 0:00:46]} 28. Rcf2 {[%emt 0:00:26] White threatens g6 and mate.} f5 {[%emt 0:02:04]} 29. gxf6 {[%emt 0:00:38] White mates.} Qf7 {[%emt 0:00:01] [#]} 30. Nd5 $1 {[%emt 0:00:02][%mdl 512]} Bd8 {[%emt 0:00:36] [#]} 31. Ne7+ $1 {[%emt 0:00:23]} Bxe7 {[%emt 0:00:03]} 32. fxe7 {[%emt 0:00:02]} Qxg7+ {[%emt 0:02:55] Black is weak on the dark squares} 33. Qxg7+ {[%emt 0:00:02]} Kxg7 {[%emt 0:00:02]} 34. Rg2+ {[%emt 0:01:20] Weighted Error Value: White=0.27 (precise) /Black=0.82.  Mistake:       	---       	Black=5      Inaccurate:     	---       	Black=1      OK:         	White=7     	Black=2} 1-0

[Event "XVI Memorial Ezequiel Martin 2024"]
[Site "Mollet"]
[Date "2024.06.09"]
[Round "6.3"]
[White "Sanchez Aguilar, Arnau"]
[Black "Narciso Dublan, Marc"]
[Result "0-1"]
[ECO "C41"]
[WhiteElo "2151"]
[BlackElo "2432"]
[Annotator "RC"]
[PlyCount "68"]
[EventDate "2024.06.01"]
[EventType "swiss"]
[EventCountry "ESP"]
[SourceTitle "playchess.com"]
[Source "ChessBase"]
[SourceQuality "1"]
[TimeControl "900+5"]

1. e4 {[%emt 0:00:03]} d6 {[%emt 0:00:07]} 2. d4 {[%emt 0:00:06]} Nf6 {[%emt 0:00:02]} 3. Nc3 {[%emt 0:00:01]} e5 {[%emt 0:00:03]} 4. Nf3 {[%emt 0:00:05]} Nbd7 {[%emt 0:00:02]} 5. g3 {[%emt 0:00:20]} Be7 {[%emt 0:00:56]} 6. Bg2 {[%emt 0:00:02]} O-O {[%emt 0:00:02]} 7. O-O {[%emt 0:00:03]} Re8 {[%emt 0:00:05]} 8. Re1 {[%emt 0:01:09]} c6 {[%emt 0:00:12]} 9. a4 {[%emt 0:00:02]} b6 {[%emt 0:00:45]} 10. a5 {[%emt 0:01:06]} b5 {[%emt 0:00:33]} 11. d5 {[%emt 0:00:27]} cxd5 {[%emt 0:00:22]} 12. Nxd5 {[%emt 0:00:04]} Nxd5 {[%emt 0:01:19]} 13. exd5 {[%emt 0:12:42]} Nf6 {[%emt 0:00:58]} 14. Nxe5 {[%emt 0:00:00]} dxe5 {[%emt 0:00:57]} 15. d6 {[%emt 0:00:00]} Bg4 {[%emt 0:00:02]} 16. f3 {[%emt 0:00:00]} Bf5 {[%emt 0:03:11]} 17. dxe7 {[%emt 0:00:00]} Qxe7 {[%emt 0:00:08]} 18. Qe2 {[%emt 0:00:00]} a6 {[%emt 0:00:13]} 19. Be3 {[%emt 0:00:00]} Nd5 {[%emt 0:00:39]} 20. Bd4 {[%emt 0:00:00]} exd4 {[%emt 0:00:12]} 21. Qxe7 {[%emt 0:00:00]} Rxe7 {[%emt 0:00:28]} 22. f4 {[%emt 0:00:00]} Rae8 {[%emt 0:00:01]} 23. Rxe7 {[%emt 0:00:00]} Nxe7 {[%emt 0:00:02]} 24. Re1 {[%emt 0:00:00]} Kf8 {[%emt 0:00:20]} 25. Bb7 {[%emt 0:00:00]} Bxc2 {[%emt 0:00:11]} 26. Bxa6 {[%emt 0:00:00]} d3 {[%emt 0:00:04]} 27. Bxb5 {[%emt 0:00:00]} d2 {[%emt 0:00:03]} 28. Rf1 {[%emt 0:00:00]} Rd8 {[%emt 0:00:31]} 29. Be2 {[%emt 0:00:00]} d1=Q {[%emt 0:00:09]} 30. Bxd1 {[%emt 0:00:00]} Rxd1 {[%emt 0:00:02]} 31. Rxd1 {[%emt 0:00:00]} Bxd1 {[%emt 0:00:01]} 32. b4 {[%emt 0:00:00]} Be2 {[%emt 0:00:04]} 33. Kf2 {[%emt 0:00:00]} Ba6 {[%emt 0:00:01]} 34. Ke3 {[%emt 0:00:00]} Nc6 {[%emt 0:00:01]} 0-1

[Event "XVI Memorial Ezequiel Martin 2024"]
[Site "Mollet"]
[Date "2024.06.09"]
[Round "6.4"]
[White "Ayats Llobera, Gerard"]
[Black "Masague Artero, Guerau"]
[Result "1-0"]
[ECO "B06"]
[WhiteElo "2466"]
[BlackElo "2345"]
[Annotator "TA"]
[PlyCount "123"]
[EventDate "2024.06.01"]
[EventType "swiss"]
[EventCountry "ESP"]
[SourceTitle "playchess.com"]
[Source "ChessBase"]
[SourceQuality "1"]
[TimeControl "900+5"]

{[%evp 47,123,0,0,-14,12,8,20,20,20,20,20,20,20,20,58,62,60,51,71,18,18,0,18,18,18,18,18,18,2,0,0,0,39,0,66,60,68,69,60,60,108,114,106,82,123,0,146,107,197,189,169,174,550,536,560,567,637,630,810,932,924,877,917,928,1210,1165,6604,1014,2137,0,29968,29969,29975,29977,29990,29991,29991,29991]} 1. e4 {[%emt 0:04:35]} g6 {[%emt 0:00:05]} 2. d4 {[%emt 0:00:02]} Bg7 {[%emt 0:00:02]} 3. Nc3 {[%emt 0:00:01]} d6 {[%emt 0:00:01]} 4. Be3 {[%emt 0:00:06]} a6 {[%emt 0:00:01]} 5. f4 {[%emt 0:00:06]} b5 {[%emt 0:00:16]} 6. Nf3 {[%emt 0:00:06]} Bb7 {[%emt 0:00:02]} 7. Bd3 {[%emt 0:00:10]} Nd7 {[%emt 0:00:25]} 8. e5 {[%emt 0:00:02]} Nh6 {[%emt 0:00:20] B06: Modern Defence.} 9. Qe2 {[%emt 0:00:23]} e6 {[%emt 0:01:34]} 10. O-O-O {[%emt 0:00:17]} Nb6 {[%emt 0:00:39]} 11. a3 $146 {[%emt 0:00:18]} ({Predecessor:} 11. Kb1 Qd7 12. h3 Nf5 13. Bf2 Ne7 14. Rhe1 O-O-O 15. Ne4 Ned5 16. Qd2 Kb8 17. g3 {0-1 Studer,N (2462)-Svidler,P (2759) Biel Exhibition blitz 2016 (5)}) 11... Nf5 {[%emt 0:00:28]} 12. Bf2 {[%emt 0:00:09]} h5 {[%emt 0:00:44]} 13. Kb1 {[%emt 0:00:01]} Nd5 {[%emt 0:01:05]} 14. Nxd5 {[%emt 0:00:05]} Bxd5 {[%emt 0:00:02]} 15. h3 {[%emt 0:01:04]} h4 {[%emt 0:00:14]} 16. Be4 {[%emt 0:00:38]} Bxe4 {[%emt 0:00:11]} 17. Qxe4 {[%emt 0:00:02]} d5 {[%emt 0:00:01]} 18. Qe2 {[%emt 0:00:31]} Bf8 {[%emt 0:00:03]} 19. Nh2 {[%emt 0:01:59]} Be7 {[%emt 0:00:07]} 20. Ng4 {[%emt 0:00:01]} Kf8 {[%emt 0:00:10]} 21. Ne3 {[%emt 0:00:42]} Qd7 {[%emt 0:00:14]} 22. Nxf5 {[%emt 0:00:03]} exf5 {[%emt 0:00:03]} 23. Rhe1 {[%emt 0:00:10]} Qe6 {[%emt 0:00:02]} 24. Qd3 {[%emt 0:00:12]} Kg7 {[%emt 0:00:05]} 25. Rg1 {[%emt 0:01:16]} Rab8 {[%emt 0:01:50]} 26. Be1 {[%emt 0:00:38]} b4 {[%emt 0:02:46]} 27. a4 $1 {[%emt 0:00:07]} Rhc8 {[%emt 0:00:55]} 28. Bf2 {[%emt 0:00:15]} Rb6 {[%emt 0:01:25]} 29. Qf3 {[%emt 0:00:47]} Qc6 {[%emt 0:00:52]} 30. b3 {[%emt 0:00:05]} Qe6 {[%emt 0:00:03]} 31. g3 {[%emt 0:00:07]} hxg3 {[%emt 0:00:02]} 32. Rxg3 {[%emt 0:00:05]} (32. Qxg3 Rh8 $11) 32... Rc6 {[%emt 0:00:19]} 33. Qe2 {[%emt 0:00:13]} (33. Be1 $16) 33... Rh8 $1 $11 {[%emt 0:00:15]} 34. Rdg1 {[%emt 0:00:06]} Kf8 {[%emt 0:00:10]} 35. Rf3 {[%emt 0:00:04]} Ke8 {[%emt 0:00:11]} 36. Kb2 {[%emt 0:00:17]} Kd7 {[%emt 0:00:05]} 37. Rc1 {[%emt 0:00:01]} Rc3 {[%emt 0:01:10]} 38. Be1 {[%emt 0:00:19]} Rxf3 {[%emt 0:00:03]} 39. Qxf3 {[%emt 0:00:01]} Rb8 {[%emt 0:00:40]} 40. Ka2 {[%emt 0:00:16]} Rb7 {[%emt 0:00:30]} (40... Qc6 $11) 41. h4 {[%emt 0:00:05]} Rb8 {[%emt 0:00:07]} 42. h5 {[%emt 0:00:08]} gxh5 {[%emt 0:00:08]} 43. Qxh5 {[%emt 0:00:01]} Qg6 {[%emt 0:00:01]} (43... Rg8 $14 {is superior.}) 44. Qf3 {[%emt 0:00:01]} c6 {[%emt 0:00:04]} 45. Qd3 {[%emt 0:00:14]} Ra8 {[%emt 0:00:08]} 46. c3 {[%emt 0:00:23]} (46. Ka1 $16) 46... bxc3 {[%emt 0:00:03]} (46... Qg2+ $11 {keeps the balance.} 47. Rc2 Qe4 48. Qxe4 fxe4) 47. Qxc3 {[%emt 0:00:01]} (47. Rxc3 Qg2+ 48. Bd2 Qe4 $11) 47... Qe6 {[%emt 0:00:10]} (47... Rc8 $16) 48. Qa5 $18 {[%emt 0:00:05]} Bd8 {[%emt 0:00:02]} 49. Qb4 {[%emt 0:00:07]} Bc7 $2 {[%emt 0:00:00]} (49... Kc8 {is tougher.} 50. Qc5 Kb7) 50. Qb7 $18 {[%emt 0:00:05]} Rb8 {[%emt 0:00:09]} 51. Qxa6 {[%emt 0:00:02]} Rg8 {[%emt 0:00:10]} 52. Rc2 {[%emt 0:00:07]} Rb8 {[%emt 0:00:07]} 53. Qa7 {[%emt 0:00:16]} Kc8 {[%emt 0:00:01]} 54. b4 {[%emt 0:00:15]} Bb6 {[%emt 0:00:05]} 55. Qa6+ {[%emt 0:00:08]} Kd7 {[%emt 0:00:00]} 56. b5 {[%emt 0:00:10]} Bxd4 {[%emt 0:00:14]} 57. bxc6+ {[%emt 0:00:09]} (57. Qxc6+ Qxc6 58. Rxc6 Be3 59. Rd6+ Ke8 $18) (57. Rxc6 $142 Qe7 58. Ba5 (58. Rd6+ Ke8 $18) 58... Bxe5 59. fxe5 (59. Qa7+ Ke8 $18) 59... Qxe5 60. Rc7+ Qxc7 61. Bxc7 Kxc7 62. Qc6+ Kd8 63. Qd6+ (63. Qxd5+ Kc8 64. Qxf5+ Kd8 65. Qxf7 Rb6 66. Qd5+ Ke7 67. Qc5+ Rd6 $18) 63... Kc8 64. b6 (64. Qxd5 f4 $18)) 57... Ke8 {[%emt 0:00:01]} 58. c7 $2 {[%emt 0:01:18]} (58. Rh2 $18 {Intending Rh8+ and mate.} Kf8 59. Rh8+ Kg7 60. Rxb8 Bxe5 61. fxe5 Qxe5 62. Rb3) 58... Rc8 $2 {[%mdl 8192]} (58... Rb2+ $11 59. Rxb2 Qxa6 60. Rb8+ Kd7 61. c8=B+ (61. c8=Q+ Qxc8 62. Rxc8 Kxc8 $11) 61... Qxc8 62. Rxc8 Kxc8) 59. Qb5+ {[%emt 0:00:00]} Qd7 {[%emt 0:00:01]} 60. Rc6 {[%emt 0:00:00]} Be3 {[%emt 0:00:05]} 61. e6 {[%emt 0:00:00]} Qe7 {[%emt 0:00:15]} 62. Rc2+ {[%emt 0:00:00]} 1-0

[Event "XVI Memorial Ezequiel Martin 2024"]
[Site "Mollet"]
[Date "2024.06.09"]
[Round "6.5"]
[White "Perez Pastora, Evarist"]
[Black "Hernandez, Cristian Andres"]
[Result "0-1"]
[ECO "B33"]
[WhiteElo "2070"]
[BlackElo "2350"]
[Annotator "RC"]
[PlyCount "54"]
[EventDate "2024.06.01"]
[EventType "swiss"]
[EventCountry "ESP"]
[SourceTitle "playchess.com"]
[Source "ChessBase"]
[SourceQuality "1"]
[TimeControl "900+5"]

1. e4 {[%emt 0:00:03]} c5 {[%emt 0:00:01]} 2. Nf3 {[%emt 0:00:10]} Nc6 {[%emt 0:00:07]} 3. d4 {[%emt 0:00:03]} cxd4 {[%emt 0:00:01]} 4. Nxd4 {[%emt 0:00:02]} Nf6 {[%emt 0:00:02]} 5. Nxc6 {[%emt 0:00:04]} bxc6 {[%emt 0:00:01]} 6. Bd3 {[%emt 0:00:02]} e5 {[%emt 0:00:01]} 7. O-O {[%emt 0:00:05]} d6 {[%emt 0:00:08]} 8. Kh1 {[%emt 0:00:23]} Be7 {[%emt 0:00:04]} 9. f4 {[%emt 0:00:16]} Nd7 {[%emt 0:00:04]} 10. Qh5 {[%emt 0:01:04]} O-O {[%emt 0:00:08]} 11. Nc3 {[%emt 0:00:17]} Rb8 {[%emt 0:00:52]} 12. b3 {[%emt 0:00:25]} Bf6 {[%emt 0:00:32]} 13. Bd2 {[%emt 0:01:28]} exf4 {[%emt 0:00:26]} 14. Rad1 {[%emt 0:00:14]} Ne5 {[%emt 0:00:22]} 15. h3 {[%emt 0:00:39]} g5 {[%emt 0:01:17]} 16. Ne2 {[%emt 0:00:52]} Bg7 {[%emt 0:00:43]} 17. Bc3 {[%emt 0:00:28]} Qf6 {[%emt 0:01:22]} 18. Nd4 {[%emt 0:02:35]} Qg6 {[%emt 0:00:17]} 19. Qe2 {[%emt 0:00:36]} Re8 {[%emt 0:00:38]} 20. Nf3 {[%emt 0:01:01]} g4 {[%emt 0:01:07]} 21. Ng1 {[%emt 0:00:30]} gxh3 {[%emt 0:00:15]} 22. Rxf4 {[%emt 0:00:33]} Bg4 {[%emt 0:00:53]} 23. Rxg4 {[%emt 0:00:19]} Qxg4 {[%emt 0:00:06]} 24. Nxh3 {[%emt 0:00:20]} Qxe2 {[%emt 0:00:14]} 25. Bxe2 {[%emt 0:00:01]} Rbd8 {[%emt 0:00:18]} 26. Nf4 {[%emt 0:00:24]} Ng6 {[%emt 0:00:12]} 27. Nxg6 {[%emt 0:01:27]} Bxc3 {[%emt 0:00:03]} 0-1